Cogmind - Beta 13 @@@ ROGUE MODE // 2024.04.07 @ 23:17:56 Player: desiring-machine Result: Destroyed by S-27 Virus with Autogun Performance ------------- Evolutions (4) 2000 Regions Visited (9) 1800 Robots Destroyed (21) 105 Value Destroyed (826) 826 Prototype IDs (3) 60 Alien Tech Used (0) 0 Bonus (409) 409 TOTAL SCORE: 5200 Bonus ------- High Alert Combat Kills 26 Follower Combat Kills 83 Aligned with FarCom 300 Cogmind --------- Core Integrity 0/850 Matter 292/300 Energy 100/100 System Corruption 0% Temperature Cool (0) Movement Core (50) Location -6/Factory Parts ------- > --- POWER (2) -------- (None) > --- PROPULSION (4) --- (None) > --- UTILITY (5) ------ Launcher Guidance Computer Improved Power Shielding > --- WEAPON (4) ------- (None) > --- INVENTORY (5) ---- Compact Wheel Structural Scanner Peak State ------------ > --- POWER ------------ Light Deuterium Engine Light Nuclear Core > --- PROPULSION ------- Combat Airjet Combat Airjet Combat Airjet > --- UTILITY ---------- Small Storage Unit Medium Battery Advanced Weight Redist. System Particle Charger Cloak of Protection > --- WEAPON ----------- YOLO Cannon > --- INVENTORY -------- Structural Scanner Launcher Guidance Computer Hardlight Generator Firepult Rocket Launcher [Rating: 60] Favorites ----------- Power Light Nuclear Core Engine Light Deuterium Engine Power Core Light Nuclear Core Propulsion Combat Airjet Wheel Wheel Hover Unit Combat Airjet Utility Small Storage Unit Device Advanced Weight Redist. System Storage Small Storage Unit Processor Launcher Guidance Computer Protection Improved Power Shielding Weapon YOLO Cannon Energy Gun Small Laser Energy Cannon YOLO Cannon Launcher Mini Grenade Launcher Slashing Weapon Greatsword Build | -11 -10 -10 -10 -9 -8 -7 -7 -7 -6 ------- Run | Yrd Mat Min Exi Min Mat Fac Low Low Fac Slots Evolved 8 | . . . . . 4 2 . . 2 Power 1 | . . . . . . 1 . . . Propulsion 2 | . . . . . 2 . . . . Utility 3 | . . . . . 2 1 . . . Weapon 2 | . . . . . . . . . 2 Parts Attached 32 | 6 2 6 5 . 4 . 6 . 3 Power 6 | 1 1 1 1 . . . 2 . . Engine 4 | 1 1 1 . . . . 1 . . Core 2 | . . . 1 . . . 1 . . Reactor . | . . . . . . . . . . Propulsion 6 | 2 . 3 . . 1 . . . . Treads . | . . . . . . . . . . Leg . | . . . . . . . . . . Wheel 3 | 2 . 1 . . . . . . . Hover 3 | . . 2 . . 1 . . . . Flight . | . . . . . . . . . . Utility 11 | 1 1 . 1 . 3 . 3 . 2 Device 6 | . 1 . 1 . 2 . 2 . . Storage 2 | 1 . . . . 1 . . . . Processor 1 | . . . . . . . 1 . . Hackware . | . . . . . . . . . . Protection 2 | . . . . . . . . . 2 Artifact . | . . . . . . . . . . Weapon 9 | 2 . 2 3 . . . 1 . 1 Energy Gun 2 | 2 . . . . . . . . . Energy Cannon 4 | . . . 3 . . . 1 . . Ballistic Gun . | . . . . . . . . . . Ballistic Cannon . | . . . . . . . . . . Launcher 2 | . . 2 . . . . . . . Special Weapon . | . . . . . . . . . . Impact Weapon . | . . . . . . . . . . Slashing Weapon 1 | . . . . . . . . . 1 Piercing Weapon . | . . . . . . . . . . Special Melee Weapon . | . . . . . . . . . . Unidentified Prototypes 3 | . . . 3 . . . . . . Parts Lost 16 | . 3 . . . . . 5 5 3 Power 4 | . 1 . . . . . 1 2 . Propulsion 3 | . 1 . . . . . 1 . 1 Utility 6 | . . . . . . . 2 3 1 Weapon 3 | . 1 . . . . . 1 . 1 Highest Loss Streak 5 | . 1 . . . . . 5 5 2 To Critical Strikes . | . . . . . . . . . . Average Slot Usage (%) 77 | . 88 90 92 85 78 69 79 44 13 Engine 4 | . 12 14 8 . . . 4 . . Core 7 | . . . 5 14 9 7 9 11 . Wheel 2 | . 22 14 . . . . . . . Hover 19 | . . 13 28 28 26 23 20 7 2 Device 16 | . 11 14 14 14 17 15 21 12 . Storage 12 | . 14 14 14 14 16 15 12 4 . Processor 1 | . . . . . . . 1 7 6 Energy Gun 2 | . 26 8 . . . . . . . Energy Cannon 6 | . . . 6 14 9 7 7 . . Launcher 2 | . . 11 15 . . . . . . Naked Turns . | . . . . . . . . . . Heaviest Build 47 | 11 12 16 36 36 38 33 47 47 7 Greatest Support 45 | 20 20 26 24 24 45 45 45 21 12 Greatest Overweight (x) 2 | . 1 . 1 1 1 . 2 2 2 Average Overweight (x) . | . . . . 1 . . 1 . . Largest Inventory Capacity 8 | 8 8 8 8 8 8 8 8 5 5 Average Capacity 7 | 6 8 8 8 8 8 8 7 5 5 Most Carried 8 | 5 5 8 8 8 8 7 8 2 4 Average Carried 5 | 2 3 6 7 8 6 7 5 2 2 Final Capacity 8 | 8 8 8 8 8 8 8 5 5 5 Final Carried 8 | 2 4 7 8 8 7 7 2 2 2 Class Distribution -------------------- 65% | Scavenger-Mutant 34% | Mutant Dominant Class ---------------- Mutant | -10/Materials Scavenger-Mutant | -10/Mines Scavenger-Mutant | -10/Exiles Mutant | -9/Mines Scavenger-Mutant | -8/Materials Scavenger-Mutant | -7/Factory Scavenger-Mutant | -7/Lower Caves Scavenger-Mutant | -7/Lower Caves Mutant | -6/Factory Resources | -11 -10 -10 -10 -9 -8 -7 -7 -7 -6 ----------- Run | Yrd Mat Min Exi Min Mat Fac Low Low Fac Matter Collected 485 | 260 15 60 . . 90 . 60 . . Remotely . | . . . . . . . . . . Salvage Created 783 | . 95 . . . 435 . 253 . . Parts 27 | . 4 . . . 22 . 1 . . Haulers Intercepted 1 | . . . . . 1 . . . . Recyclers Shooed 1 | . . 1 . . . . . . . Parts Field Recycled . | . . . . . . . . . . Retrieved Matter . | . . . . . . . . . . Parts Self-Destructed . | . . . . . . . . . . Prevented . | . . . . . . . . . . Kills | -11 -10 -10 -10 -9 -8 -7 -7 -7 -6 ------- Run | Yrd Mat Min Exi Min Mat Fac Low Low Fac Combat Hostiles Destroyed 18 | . 4 . . . 9 . 5 . . Guns 4 | . 4 . . . . . . . . Cannons 5 | . . . . . 3 . 2 . . AOE 6 | . . . . . 4 . 2 . . Classes Destroyed 8 | . 2 . . . 5 . 1 . . Builder 1 | . . . . . 1 . . . . Hauler 1 | . . . . . 1 . . . . Watcher 1 | . . . . . 1 . . . . Swarmer 3 | . 3 . . . . . . . . Grunt 7 | . 1 . . . 3 . 3 . . Brawler 1 | . . . . . . . 1 . . Sentry 6 | . . . . . 5 . 1 . . Heavy 1 | . . . . . 1 . . . . Best Kill Streak 9 | . 3 . . . 9 . 4 . . Combat Bots Only 6 | . 3 . . . 6 . 4 . . Max Kills in Single Turn 3 | . 1 . . . 2 . 3 . . Gunslinging . | . . . . . . . . . . Exploded 2 | . . . . . 2 . 2 . . Melee . | . . . . . . . . . . Uniques/NPCs Destroyed . | . . . . . . . . . . Combat | -11 -10 -10 -10 -9 -8 -7 -7 -7 -6 -------- Run | Yrd Mat Min Exi Min Mat Fac Low Low Fac Hostile Shots Fired 265 | . 43 . . . 10 . 30 62 120 Missed 94 | . 8 . . . 4 . 12 29 41 Damage Taken 2611 | . 303 52 . . 252 . 375 419 1210 Core 1220 | . 82 40 . . 72 . 34 133 859 Absorbed by Shields . | . . . . . . . . . . Core Remaining (%) 65 | 100 . . . 51 86 . . 26 . Volleys Fired 35 | . 17 2 . . 10 . 6 . . Largest 2 | . 2 1 . . 1 . 1 . . Hottest 250 | . 80 40 . . 100 . 250 . . Shots Fired 51 | . 34 2 . . 10 . 5 . . Gun 36 | . 34 2 . . . . . . . Cannon 15 | . . . . . 10 . 5 . . Launcher . | . . . . . . . . . . Special . | . . . . . . . . . . Kinetic . | . . . . . . . . . . Thermal 34 | . 17 2 . . 10 . 5 . . Explosive . | . . . . . . . . . . Electromagnetic 17 | . 17 . . . . . . . . Robot Hit Streak 5 | . 5 5 . . 3 . 4 . . Robot Miss Streak 4 | . 4 . . . 2 . 1 . . Penetration Max . | . . . . . . . . . . Secondary Targets . | . . . . . . . . . . Shots Hit Robots 30 | . 19 2 . . 6 . 3 . . Core Hits 28 | . 5 . . . 11 . 10 . 2 Critical Kills 2 | . . . . . 2 . . . . Critical Parts Destroyed . | . . . . . . . . . . Critical Strikes 2 | . . . . . 2 . . . . Meltdown 2 | . . . . . 2 . . . . Melee Attacks 1 | . . . . . . . . . 1 Impact . | . . . . . . . . . . Slashing 1 | . . . . . . . . . 1 Piercing . | . . . . . . . . . . Sneak Attacks . | . . . . . . . . . . Combat Hostiles . | . . . . . . . . . . Follow-up Attacks . | . . . . . . . . . . Damage Inflicted 2326 | . 228 22 . . 1406 . 664 . 6 Guns 250 | . 228 22 . . . . . . . Cannons 1090 | . . . . . 784 . 306 . . Explosions 980 | . . . . . 622 . 358 . . Melee . | . . . . . . . . . . Ramming 6 | . . . . . . . . . 6 Kinetic . | . . . . . . . . . . Thermal 2119 | . 123 22 . . 1310 . 664 . . Explosive 96 | . . . . . 96 . . . . Electromagnetic 105 | . 105 . . . . . . . . Impact . | . . . . . . . . . . Slashing . | . . . . . . . . . . Piercing . | . . . . . . . . . . Highest Corruption 1 | . . . . . . . . 1 . Average Corruption 1 | . . . . . . . . 1 . Corruption Purged . | . . . . . . . . . . Corruption Blocked . | . . . . . . . . . . Effects 1 | . . . . . . . . 1 . Heat Flow Errors 1 | . . . . . . . . 1 . Overload Shots . | . . . . . . . . . . Overflow Damage 104 | . . . . . 89 . 15 . . Projectiles 15 | . . . . . 15 . . . . Explosions 89 | . . . . . 74 . 15 . . Melee . | . . . . . . . . . . Knockbacks . | . . . . . . . . . . Impact . | . . . . . . . . . . Kinetic . | . . . . . . . . . . Secondary . | . . . . . . . . . . Self-Inflicted Damage 288 | . . . . . 151 . 135 . 2 Shots 6 | . . . . . 2 . 4 . . Rammed 4 | . . . . . . . . . 4 Targets Rammed 4 | . . . . . . . . . 4 Kicked . | . . . . . . . . . . Crushed . | . . . . . . . . . . Highest Temperature 545 | . 164 . . . 37 . 545 203 . Average Temperature 91 | . 80 . . . 16 . 189 108 . Received Heat Transfer 192 | . 27 . . . 45 . 120 . . Effects 2 | . . . . . . . 2 . . Shutdowns 1 | . . . . . . . 1 . . Short Circuit 1 | . . . . . . . 1 . . Siege Activations . | . . . . . . . . . . Robots Corrupted . | . . . . . . . . . . Combat Hostiles . | . . . . . . . . . . Parts Fried . | . . . . . . . . . . Impact Corruptions . | . . . . . . . . . . Robots Melted 3 | . . . . . 2 . 1 . . Combat Hostiles 3 | . . . . . 2 . 1 . . Parts Melted 10 | . . . . . 6 . 4 . . Heat Transferred 2825 | . 275 50 . . 960 . 1540 . . Parts Sabotaged . | . . . . . . . . . . Parts Stolen 3 | . . . . . . . . 3 . Parts Stripped . | . . . . . . . . . . Power Chain Reactions . | . . . . . . . . . . Alert | -11 -10 -10 -10 -9 -8 -7 -7 -7 -6 ------- Run | Yrd Mat Min Exi Min Mat Fac Low Low Fac Peak Influence 586 | . 155 56 . . 586 175 . . 15 Initial 175 | . . 56 . . . 175 . . . Average 160 | . 82 56 . . 390 175 . . 2 Maximum Alert Level 2 | . . . . . 2 . . . . Low Security (%) 72 | 100 100 100 . 100 20 100 . . 100 Level 1 7 | . . . . . 21 . . . . Level 2 20 | . . . . . 58 . . . . Level 3 . | . . . . . . . . . . Level 4 . | . . . . . . . . . . Level 5 . | . . . . . . . . . . High Security . | . . . . . . . . . . Max Security . | . . . . . . . . . . Squads Dispatched 3 | . 1 . . . 2 . . . . Investigation 1 | . 1 . . . . . . . . Extermination . | . . . . . . . . . . Reinforcement 1 | . . . . . 1 . . . . Assault . | . . . . . . . . . . Garrison 1 | . . . . . 1 . . . . Intercept . | . . . . . . . . . . Searches Triggered . | . . . . . . . . . . Construction Impeded 1 | . . . . . 1 . . . . Haulers Reinforced . | . . . . . . . . . . Active Scanning Responses . | . . . . . . . . . . Cargo Convoy Interrupts . | . . . . . . . . . . Stealth | -11 -10 -10 -10 -9 -8 -7 -7 -7 -6 --------- Run | Yrd Mat Min Exi Min Mat Fac Low Low Fac Distress Signals 5 | . 1 . . . 4 . . . . Communications Jammed . | . . . . . . . . . . Distress Signals . | . . . . . . . . . . Times Spotted 42 | . 10 . . . 13 . 5 5 9 Peak Tracking Total 9 | . 5 . . . 5 . 4 3 9 Tactical Retreats 1 | . 1 . . . . . . . . Traps | -11 -10 -10 -10 -9 -8 -7 -7 -7 -6 ------- Run | Yrd Mat Min Exi Min Mat Fac Low Low Fac Traps Triggered 1 | . 1 . . . . . . . . Indirectly . | . . . . . . . . . . Trap Hack Attempts . | . . . . . . . . . . Triggered . | . . . . . . . . . . Disarmed . | . . . . . . . . . . Reprogrammed . | . . . . . . . . . . Reused . | . . . . . . . . . . Traps Extracted . | . . . . . . . . . . Installed . | . . . . . . . . . . Triggered . | . . . . . . . . . . Machines | -11 -10 -10 -10 -9 -8 -7 -7 -7 -6 ---------- Run | Yrd Mat Min Exi Min Mat Fac Low Low Fac Machines Disabled 6 | . . . . . 6 . . . . Max in Single Turn 3 | . . . . . 3 . . . . Machines Repaired . | . . . . . . . . . . Machines Dismantled . | . . . . . . . . . . Machines Sabotaged . | . . . . . . . . . . Overloaded Fab Kills . | . . . . . . . . . . Hacking | -11 -10 -10 -10 -9 -8 -7 -7 -7 -6 --------- Run | Yrd Mat Min Exi Min Mat Fac Low Low Fac Machines Accessed 2 | . . . 1 . . . 1 . . Terminals . | . . . . . . . . . . Fabricators . | . . . . . . . . . . Repair Stations . | . . . . . . . . . . Recycling Units . | . . . . . . . . . . Scanalyzers . | . . . . . . . . . . Garrison Access . | . . . . . . . . . . Total Hacks 11 | . . . 9 . . . 2 . . Successful 11 | . . . 9 . . . 2 . . Failed . | . . . . . . . . . . Catastrophic . | . . . . . . . . . . Database Lockouts . | . . . . . . . . . . Manual 1 | . . . 1 . . . . . . Terminals . | . . . . . . . . . . Fabricators . | . . . . . . . . . . Repair Stations . | . . . . . . . . . . Recycling Units . | . . . . . . . . . . Scanalyzers . | . . . . . . . . . . Garrison Access . | . . . . . . . . . . Terminal Hacks 11 | . . . 9 . . . 2 . . Record 11 | . . . 9 . . . 2 . . Fabricator Hacks . | . . . . . . . . . . Repair Station Hacks . | . . . . . . . . . . Recycling Unit Hacks . | . . . . . . . . . . Scanalyzer . | . . . . . . . . . . Garrison Access Hacks . | . . . . . . . . . . Unauthorized Hacks . | . . . . . . . . . . Terminals . | . . . . . . . . . . Fabricators . | . . . . . . . . . . Repair Stations . | . . . . . . . . . . Recycling Units . | . . . . . . . . . . Scanalyzers . | . . . . . . . . . . Garrison Access . | . . . . . . . . . . Data Cores Recovered . | . . . . . . . . . . Used . | . . . . . . . . . . Hacking Detections . | . . . . . . . . . . Full Trace Events . | . . . . . . . . . . Feedback Events . | . . . . . . . . . . Feedback Blocked . | . . . . . . . . . . Robot Schematics Acquired . | . . . . . . . . . . Robots Built . | . . . . . . . . . . Authchips . | . . . . . . . . . . Time . | . . . . . . . . . . Total Robot Build Rating . | . . . . . . . . . . Part Schematics Acquired . | . . . . . . . . . . Parts Built . | . . . . . . . . . . Authchips . | . . . . . . . . . . Time . | . . . . . . . . . . Total Part Build Rating . | . . . . . . . . . . Parts Repaired . | . . . . . . . . . . Time . | . . . . . . . . . . Parts Recycled . | . . . . . . . . . . Recycled Matter . | . . . . . . . . . . Retrieved Matter . | . . . . . . . . . . Retrieved Components . | . . . . . . . . . . Parts Scanalyzed . | . . . . . . . . . . Part Schematics Acquired . | . . . . . . . . . . Parts Damaged . | . . . . . . . . . . Bothacking | -11 -10 -10 -10 -9 -8 -7 -7 -7 -6 ------------ Run | Yrd Mat Min Exi Min Mat Fac Low Low Fac Used RIF Installer . | . . . . . . . . . . Robots Hacked . | . . . . . . . . . . Non-combat . | . . . . . . . . . . Combat . | . . . . . . . . . . Robot Hacks Applied . | . . . . . . . . . . Relay Couplers Released . | . . . . . . . . . . Fabnet Peak Effective % . | . . . . . . . . . . Robots Rewired . | . . . . . . . . . . Allies Hacked . | . . . . . . . . . . Hacks Repelled . | . . . . . . . . . . Allies | -11 -10 -10 -10 -9 -8 -7 -7 -7 -6 -------- Run | Yrd Mat Min Exi Min Mat Fac Low Low Fac Total Allies 3 | . . . . 3 . . . . . Largest Group 3 | . . . . 3 3 1 . . . Highest-Rated Group 40 | . . . . 40 40 16 . . . Highest-Rated Ally 16 | . . . . 16 16 16 . . . Total Orders . | . . . . . . . . . . Ally Attacks 45 | . . . . . 45 . . . . Total Damage 456 | . . . . . 456 . . . . Kills 4 | . . . . . 4 . . . . Allies Corrupted . | . . . . . . . . . . Allies Melted . | . . . . . . . . . . Intel | -11 -10 -10 -10 -9 -8 -7 -7 -7 -6 ------- Run | Yrd Mat Min Exi Min Mat Fac Low Low Fac Robot Analysis Total . | . . . . . . . . . . Derelict Logs Recovered 5 | . . 1 . 1 . . 3 . . Drone Launches . | . . . . . . . . . . Drone Recoveries . | . . . . . . . . . . Exploration | -11 -10 -10 -10 -9 -8 -7 -7 -7 -6 ------------- Run | Yrd Mat Min Exi Min Mat Fac Low Low Fac Turns Passed 2850 | 45 210 170 388 296 455 17 929 238 102 Spaces Moved 2395 | 46 167 168 371 202 402 20 600 292 127 Core 94 | 17 . . . . . . . . 77 Treads . | . . . . . . . . . . Legs . | . . . . . . . . . . Wheels 280 | 29 167 84 . . . . . . . Hover 2021 | . . 84 371 202 402 20 600 292 50 Flight . | . . . . . . . . . . Fastest Speed 50 | 50 80 77 77 147 74 74 74 80 50 Average Speed 104 | 68 84 83 96 147 76 74 147 80 69 Slowest Speed 220 | 80 95 90 147 147 147 74 220 220 150 Overloaded Moves . | . . . . . . . . . . Propulsion Burnouts . | . . . . . . . . . . Robots Hopped . | . . . . . . . . . . Cave-ins Triggered . | . . . . . . . . . . Exploration Rate (%) 38 | 4 38 46 71 60 48 1 83 30 4 Regions Visited 9 Branch Regions 5 Pre-discovered Areas 2 | . . 1 . 1 . . . . . Known Exits Taken . | . . . . . . . . . . Unknown Exits Taken 9 | 1 1 1 1 1 1 1 1 1 . Scrap Searched 2 | . . . . . . . 1 1 . Spaces Dug . | . . . . . . . . . . Terrain Destroyed 179 | . . . . . 138 . 41 . . Melee . | . . . . . . . . . . Projectile 2 | . . . . . 1 . 1 . . AOE 177 | . . . . . 137 . 40 . . Terrain Rammed . | . . . . . . . . . . Walls Destroyed . | . . . . . . . . . . Machines Disabled . | . . . . . . . . . . Actions | -11 -10 -10 -10 -9 -8 -7 -7 -7 -6 --------- Run | Yrd Mat Min Exi Min Mat Fac Low Low Fac Total 2669 | 59 200 198 407 201 518 21 632 294 139 Wait 157 | . 11 4 18 . 101 2 17 3 1 Move 2386 | 45 166 167 370 201 401 19 599 291 127 Hop . | . . . . . . . . . . Pick Up 38 | 8 4 12 5 . 2 . 4 . 3 Fast Attach . | . . . . . . . . . . Attach 27 | 6 2 3 4 . 3 . 6 . 3 Detach 3 | . . . 3 . . . . . . Swap 5 | . . 3 1 . 1 . . . . Drop 13 | . . 7 6 . . . . . . Fire 35 | . 17 2 . . 10 . 6 . . Melee 1 | . . . . . . . . . 1 Ram 4 | . . . . . . . . . 4 Kick . | . . . . . . . . . . Crush . | . . . . . . . . . . Escape Stasis . | . . . . . . . . . . Rewire . | . . . . . . . . . . Trap . | . . . . . . . . . . Miscellaneous . | . . . . . . . . . . Route ------- -11/Scrapyard -10/Materials (discovered 2 exits: [*Mat] / [*Min]) -10/Mines -10/Exiles -9/Mines -8/Materials -7/Factory -7/Lower Caves -7/Lower Caves -6/Factory History --------- Turn | Location | Event 13 | -11/Scrapyard | Discovered new exit (range 16) 46 | -11/Scrapyard | Entered Materials 214 | -10/Materials | Discovered new exit (range 6) 238 | -10/Materials | Discovered new exit (range 13) 256 | -10/Materials | Entered Mines 276 | -10/Mines | Learned location of Storage (-9) 278 | -10/Mines | Received a Rocket Launcher from a helpful Derelict 287 | -10/Mines | Assembled infested the area 304 | -10/Mines | Build established: Mutant 320 | -10/Mines | Met 8R-AWN 369 | -10/Mines | Found a damaged Exp. Sensor Array with a note attached 371 | -10/Mines | Found Prototype Device 420 | -10/Mines | Discovered new exit (range 5) 426 | -10/Mines | Entered Exiles 445 | -10/Exiles | Welcomed by 8R-AWN 458 | -10/Exiles | Met EX-HEX 487 | -10/Exiles | Met EX-DEC 524 | -10/Exiles | Discovered new exit (range 10) 566 | -10/Exiles | Met EX-BIN 583 | -10/Exiles | Aligned with FarCom system 583 | -10/Exiles | Given EX-Vault access code 629 | -10/Exiles | Opened EX-Vault 638 | -10/Exiles | Found Prototype Energy Cannon 640 | -10/Exiles | Identified YOLO Cannon 645 | -10/Exiles | Found Prototype Device 647 | -10/Exiles | Identified Cloak of Protection 651 | -10/Exiles | Found Prototype Energy Cannon 653 | -10/Exiles | Identified Firepult 703 | -10/Exiles | Warned to stay clear of 0b10 Research branches 814 | -10/Exiles | Stole three prototypes: Cloak of Protection, YOLO Cannon, Firepult 814 | -10/Exiles | Entered Mines 979 | -9/Mines | Learned location of Zion (-7) 1028 | -9/Mines | Found a hidden stash of uninstalled traps 1082 | -9/Mines | Discovered new exit (range 7) 1100 | -9/Mines | Assisted by bots powering up and referring to "LRC-V3" 1110 | -9/Mines | Entered Materials 1110 | -8/Materials | Accompanied by 3 allies 1110 | -8/Materials | Evolved 4 slots: Propulsion x2, Utility x2 1207 | -8/Materials | Garrison activated, responded to threat 1422 | -8/Materials | Build established: Scavenger-Mutant 1545 | -8/Materials | Discovered new exit (range 16) 1565 | -8/Materials | Entered Factory 1565 | -7/Factory | Accompanied by 1 ally 1565 | -7/Factory | Evolved 2 slots: Power x1, Utility x1 1567 | -7/Factory | FarCom data flow suspended 1576 | -7/Factory | Discovered new exit (range 8) 1582 | -7/Factory | Entered Lower Caves 1583 | -7/Lower Caves | Encountered a Warlord checkpoint 1646 | -7/Lower Caves | Attracted the attention of an 0b10 checkpoint 1690 | -7/Lower Caves | Learned 4 Factory zone layouts 1697 | -7/Lower Caves | Learned Factory stockpile data 2224 | -7/Lower Caves | Core integrity fell below 50% 2254 | -7/Lower Caves | Lost 5 parts (1p1n2u1w) 2487 | -7/Lower Caves | Discovered new exit (range 12) 2511 | -7/Lower Caves | Entered another Lower Caves area 2511 | -7/Lower Caves | Spotted CE-OSR(f) 2511 | -7/Lower Caves | Spotted 54-4PF(f) 2512 | -7/Lower Caves | Encountered a Master Thief 2512 | -7/Lower Caves | Encountered a Master Thief 2512 | -7/Lower Caves | Cloak of Protection stolen by Master Thief 2512 | -7/Lower Caves | Firepult stolen by Master Thief 2533 | -7/Lower Caves | Spotted OM-D81(f) 2534 | -7/Lower Caves | Encountered a Master Thief 2536 | -7/Lower Caves | Broken Cmb. Airjet stolen by Master Thief 2741 | -7/Lower Caves | Discovered new exit (range 8) 2749 | -7/Lower Caves | Entered Factory 2749 | -6/Factory | Evolved 2 slots: Weapon x2 2750 | -6/Factory | Lost 5 parts (2p3u) 2833 | -6/Factory | Core integrity fell below 50% 2849 | -6/Factory | Core integrity fell below 20% 2851 | -6/Factory | Destroyed by S-27 Virus with Autogun Last Messages --------------- corruption cleaned. 02740_ System corrupted: Heat flow error (+235). 02741_ EXIT=FOUND PARAMETERS=WEAPON+2 LOCATION=UNKNOWN GOAL=ESCAPE Loading 4 Factory zones... Loading Factory stockpile data (x10)... 02757_ Acquired Imp. Light Armor Plating. 02786_ ALERT: All DSF locations entering lockdown mode. 02790_ Cmb. Airjet destroyed. 02821_ Acquired Imp. Power Shielding. 02835_ Imp. Light Armor Plating destroyed. 02838_ Acquired Greatsword. 02847_ Greatsword destroyed. 02847_ Slammed into S-27 Virus. 02848_ Launcher Guidance Computer broken. 02848_ Destabilizing: Short circuit. 02849_ Slammed into S-27 Virus. Map ----- +----------------------------------------------------+ | ????????????????????????# #?######## #? | | ????????????????????????# ### # #? | | ????????????????????????# # # # #? | | ????????????????????????# ### """ + ? | | ????????????????????????# #?# """ # ? | | ????????????????????????+ #?# """ # ? | | ????????????????????????# #?# + ? | | ????????????????????????# #?##########? | | ??????????????????? ?# #???????????? | | ####??????????????? # #???????????? | | #??????????????? # #???????????? | | #??????????????# #########################? | | #??????????????# ? | | #??????????????# ########## ##########? | | #??????????????# T## # # ##?? | | #??????????????# ????????????????????????? | | ##########+##### ?????????????????????????? | | ?????????????????????????? | | ??????????????????????????? | | ??????????????????????????? | | ? ???????????????????????????? | | ? ??? ???????????????????????????? | | ???#???????# ###+###########?????????????????? | | ???????????# # s #?????????????????? | | ???????????# + """ss #?????????????????? | | ???????????# # """"" @s ///#?????????????????? | | ???????????# # """""ss //#?????????????????? | | #########+## # s ///#?????????????????? | | # s #?????????????????? | | #####+####/#################?????????????????? | | "" #?# #?????????????????????????? | | "" #?#! ! #?????????????????????????? | | "" #?# !! #?????????????????????????? | | ### """""" ! #?????????????????????????? | | + """""" #?????????????????????????? | | ####### """""" #?????????????????????????? | | ??????# """""" #?????????????????????????? | | ??????# #?????????????????????????? | | ??????# #?????????????????????????? | | ???????#################?????????????????????????? | | | | | | | | | | | | | | | | | | | | | +----------------------------------------------------+ Best States ------------- Heat Dissipation 37 Energy Generation 23 Energy Capacity 370 Matter Stores 300 Matter Capacity 300 Sight Range 16 Terrain Scan Density 10 Cloak Strength 5 Additional Mass Support 9 Armor Coverage 150 Power Shielding 66 Evasion (%) 50 Launcher Accuracy 20 Particle Charging 15 Item Schematics ----------------- None Robot Schematics ------------------ None Fabricated ------------ Nothing Alien Tech Used ----------------- None Achievements -------------- None Challenges ------------ None Game ------ Seed ChromaticSpreadFlail Manual? 0 Play Time 00:30:36 Cumulative 5.7 hours Start 2024.04.07 @ 17:54:22 End 2024.04.07 @ 23:17:56 Sessions 3 Manual Loads 0 Difficulty Rogue Special Mode None Game No. 10 Rogue 10 Adventurer 0 Explorer 0 Win Type - Total 0 Types 0/0/0/0/0/0/0/0/0 Lore% 9 Gallery% 12 Achievement% 11 Wizard Run 0 Options --------- Layout 1 ASCII 0 Keyboard 0 Movement Numpad Keybinds 0 Fullscreen 1 Font 24/Smallcaps Map View 50x35 Zoom Use 0% Tactical HUD 1 Map Filters NONE Filters NONE Steam 0 RUN: 5192a1a6-9f74-4ae0-8924-36c8bbb87777